bitfinex-derivatives/quotes_ETHF0:USTF0_20230903
["timestamp","ask_amount","ask_price","bid_price","bid_amount"]
[1693769413355,15.08532352,1637.2,1637.1,7.09942101]
[1693769417860,15.08532352,1637.2,1637.1,10.15428951]
[1693769418359,15.08532352,1637.2,1637.1,14.70488951]
[1693769418760,12.21816,1637.2,1637.1,17.75960951]
[1693769419062,12.21816,1637.2,1637.1,14.70488951]
[1693769419965,15.08532352,1637.2,1637.1,14.70488951]
[1693769420264,11.30170197,1637.2,1637.1,14.70488951]
[1693769420762,11.30170197,1637.2,1637.1,17.10808845]
[1693769420964,14.16886549,1637.2,1637.1,17.10808845]
[1693769421564,14.16886549,1637.2,1637.1,15.50566744]
[1693769422868,11.30170197,1637.2,1637.1,15.50566744]
[1693769423568,14.16886549,1637.2,1637.1,15.50566744]
[1693769428466,14.22976549,1637.2,1637.1,15.50566744]
[1693769433370,11.36260197,1637.2,1637.1,15.50566744]
[1693769435879,11.36260197,1637.2,1637.1,13.1024685]
[1693769436067,11.36260197,1637.2,1637.1,15.49873096]
[1693769436471,7.56570344,1637.2,1637.1,21.60817096]
[1693769436681,5.92611138,1637.3,1637.1,47.9839738]
[1693769436868,6.10855,1637.4,1637.2,11.75671134]
[1693769437068,5.62586397,1637.4,1637.3,22.50807699]
[1693769437271,5.62586397,1637.4,1637.3,29.35411195]
[1693769437672,8.68014397,1637.4,1637.3,33.97961195]
[1693769439179,5.62581397,1637.4,1637.3,33.97961195]
[1693769440369,4.96320016,1637.5,1637.4,10.0611]
[1693769440575,4.96320016,1637.5,1637.4,30.17235517]
[1693769440576,2.56526624,1637.5,1637.4,30.17235517]
[1693769440876,2.55387,1637.8,1637.6,10.0]
[1693769441176,8.66102,1637.8,1637.7,10.14853316]
[1693769441380,8.66102,1637.8,1637.7,17.07853776]
[1693769441575,8.66102,1637.8,1637.7,18.65232776]
[1693769441774,8.66102,1637.8,1637.7,21.70624397]
[1693769442081,11.52818352,1637.8,1637.7,21.70624397]
[1693769442279,8.66102,1637.8,1637.7,18.65232776]
[1693769442578,8.66102,1637.8,1637.7,21.70592776]
[1693769442979,8.66102,1637.8,1637.7,24.75984269]
[1693769443280,8.66102,1637.8,1637.7,27.15672744]
[1693769443681,8.66102,1637.8,1637.7,24.75984269]
[1693769444082,8.66102,1637.8,1637.7,27.15672744]
[1693769444277,8.66102,1637.8,1637.7,24.75984269]
[1693769444786,8.66102,1637.8,1637.7,27.15672744]
[1693769445379,8.66102,1637.8,1637.7,24.75984269]
[1693769445785,8.66102,1637.8,1637.7,30.21032744]
[1693769446384,8.66102,1637.8,1637.7,27.81344269]
[1693769448185,11.52818352,1637.8,1637.7,27.81344269]
[1693769450782,11.52818352,1637.8,1637.7,24.75952776]
[1693769451384,11.52818352,1637.8,1637.7,25.25298031]
[1693769452885,11.52818352,1637.8,1637.7,26.15109118]
[1693769453584,11.52818352,1637.8,1637.7,19.22108658]
[1693769461090,8.47458352,1637.8,1637.7,17.62316342]
[1693769461293,8.47458352,1637.8,1637.7,22.2731587]
[1693769462192,5.60742,1637.8,1637.7,22.2731587]
[1693769466296,5.60742,1637.8,1637.7,25.32708259]
[1693769467400,8.66102,1637.8,1637.7,25.32708259]
[1693769468804,6.68343648,1637.9,1637.7,16.16628259]
[1693769468999,6.68343648,1637.9,1637.8,5.497]
[1693769469404,9.5506,1637.9,1637.8,5.497]
[1693769473313,9.5506,1637.9,1637.8,7.09339528]
[1693769478512,9.5506,1637.9,1637.8,10.14730399]
[1693769479314,9.5506,1637.9,1637.8,10.14730686]
[1693769480315,9.5506,1637.9,1637.8,12.54189978]
[1693769481418,9.5506,1637.9,1637.8,10.9455045]
[1693769482313,9.5506,1637.9,1637.8,1.60043052]
[1693769483216,15.0476,1637.9,1637.8,1.60043052]
[1693769486219,15.0476,1637.9,1637.7,4.48847599]
[1693769486413,15.0476,1637.9,1637.8,1.60043052]
[1693769487118,15.0476,1637.9,1637.7,4.48847599]
[1693769487319,15.0476,1637.9,1637.7,2.09388307]
[1693769489321,15.0476,1637.9,1637.7,0.49345255]
[1693769489515,15.0476,1637.9,1637.6,15.1637]
[1693769490320,9.9105,1637.9,1637.6,15.1637]
[1693769491413,9.9105,1637.9,1637.6,12.76910708]
[1693769492719,2.86716352,1637.8,1637.6,12.76910708]
[1693769493119,2.86716352,1637.8,1637.7,5.497]
[1693769493614,4.4135,1637.9,1637.7,5.497]
[1693769494014,7.28066352,1637.9,1637.7,5.497]
[1693769499021,9.16026,1637.8,1637.7,8.55057]
[1693769499218,9.16026,1637.8,1637.7,11.60417]
[1693769499916,12.21379,1637.8,1637.7,13.20461052]
[1693769502024,11.88036336,1637.8,1637.7,13.20461052]
[1693769503533,11.88036336,1637.8,1637.7,11.60418]
[1693769504728,11.88036336,1637.8,1637.7,8.55057]
[1693769505025,11.88036336,1637.8,1637.7,11.60418]
[1693769507732,11.88036336,1637.8,1637.7,8.55057]
[1693769510832,11.88036336,1637.8,1637.7,10.15100052]
[1693769512731,11.88036336,1637.8,1637.7,7.09743052]
[1693769514036,11.88036336,1637.8,1637.7,10.15104052]
[1693769518836,11.88036336,1637.8,1637.7,8.55061]
[1693769522741,11.88036336,1637.8,1637.7,10.15104052]
[1693769523038,11.88036336,1637.8,1637.7,8.55061]
[1693769523341,11.88036336,1637.8,1637.7,10.15104052]
[1693769523744,11.88036336,1637.8,1637.7,7.09743052]
[1693769523945,11.88036336,1637.8,1637.7,10.15104052]
[1693769524244,11.88036336,1637.8,1637.7,7.09743052]
[1693769524544,11.88036336,1637.8,1637.7,10.15104052]
[1693769526249,11.88036336,1637.8,1637.7,7.09743052]
[1693769527742,14.15029984,1637.8,1637.7,7.09743052]
[1693769527939,14.15029984,1637.8,1637.7,1.60043052]
[1693769533153,14.15029984,1637.8,1637.7,7.09743052]
[1693769538755,14.15029984,1637.8,1637.7,5.497]
[1693769538951,14.15029984,1637.8,1637.7,7.10000834]
[1693769572988,11.88036336,1637.8,1637.7,7.10000834]
[1693769573182,11.88036336,1637.8,1637.7,10.15402678]
[1693769573375,5.77341336,1637.8,1637.7,20.11636095]
[1693769573575,5.09351336,1637.8,1637.7,20.91786512]
[1693769573882,5.09351336,1637.8,1637.7,20.11664755]
[1693769574382,4.89411336,1637.8,1637.7,20.11664755]
[1693769575387,4.89411336,1637.8,1637.7,27.12648061]
[1693769576485,9.16011,1637.9,1637.7,30.18009061]
[1693769576687,9.16011,1637.9,1637.8,16.25953284]
[1693769577087,9.16011,1637.9,1637.8,20.67103284]
[1693769579389,9.04321,1637.9,1637.8,20.67103284]
[1693769581194,8.56659179,1637.9,1637.8,20.67103284]
[1693769581488,4.34875824,1638.0,1637.9,0.0611]
[1693769581691,4.34875824,1638.0,1637.9,20.17626478]
[1693769581692,7.40198824,1638.0,1637.9,20.17626478]
[1693769581892,6.79198824,1638.0,1637.9,26.07528983]
[1693769582094,6.69198824,1638.0,1637.9,26.07528983]
[1693769582788,6.69198824,1638.0,1637.9,23.02205983]
[1693769582789,9.55915176,1638.0,1637.9,23.02205983]
[1693769582992,9.55915176,1638.0,1637.9,19.96838416]
[1693769583286,6.24198824,1638.0,1637.9,19.96838416]
[1693769585092,3.18875824,1638.0,1637.9,23.02163416]
[1693769585294,2.70875824,1638.0,1637.9,23.02163416]
[1693769585490,5.76198824,1638.0,1637.9,23.02163416]
[1693769586591,5.76198824,1638.0,1637.9,21.42049985]
[1693769587201,3.45198824,1638.0,1637.9,21.42049985]
[1693769587903,2.02168824,1638.0,1637.9,21.42049985]
[1693769588094,5.07491824,1638.0,1637.9,21.42049985]
[1693769589403,7.94208176,1638.0,1637.9,21.42049985]
[1693769589905,4.58491824,1638.0,1637.9,21.42049985]
[1693769592901,4.58491824,1638.0,1637.9,22.3569407]
[1693769593304,4.11491824,1638.0,1637.9,22.3569407]
[1693769593500,6.10646,1638.0,1637.9,22.3569407]
[1693769593799,8.97362352,1638.0,1637.9,22.3569407]
[1693769595102,6.10646,1638.0,1637.9,22.3569407]
[1693769595303,8.97362352,1638.0,1637.9,22.3569407]
[1693769596106,12.02685352,1638.0,1637.9,22.3569407]
[1693769596799,8.66479778,1638.0,1637.9,22.3569407]
[1693769599305,11.5319613,1638.0,1637.9,22.3569407]
[1693769601511,11.5319613,1638.0,1637.9,23.95807501]
[1693769602203,7.59568359,1638.0,1637.9,23.95807501]
[1693769604313,10.46284711,1638.0,1637.9,23.95807501]
[1693769606111,7.59568359,1638.0,1637.9,23.95807501]
[1693769606311,7.59568359,1638.0,1637.9,27.01151352]
[1693769606516,7.59568359,1638.0,1637.9,23.95807501]
[1693769607315,7.59568359,1638.0,1637.9,27.01151068]
[1693769607819,10.46284711,1638.0,1637.9,23.89716068]
[1693769608015,7.59568359,1638.0,1637.9,23.89716068]
[1693769608215,7.59568359,1638.0,1637.9,26.95042068]
[1693769608418,7.11568359,1638.0,1637.9,26.95042068]
[1693769609812,4.06245359,1638.0,1637.9,26.95042068]
[1693769610317,3.59245359,1638.0,1637.9,26.95042068]
[1693769610712,6.64568359,1638.0,1637.9,26.95042068]
[1693769610913,9.51284711,1638.0,1637.9,26.95042068]
[1693769612219,6.10616,1638.0,1637.9,29.41621979]
[1693769615717,6.10616,1638.0,1637.9,29.41489332]
[1693769616722,6.10616,1638.0,1637.9,27.81508548]
[1693769616922,8.97332352,1638.0,1637.9,27.81508548]
[1693769617226,6.10616,1638.0,1637.9,27.81508548]
[1693769618028,5.82616,1638.0,1637.9,27.81508548]
[1693769619128,5.82616,1638.0,1637.9,25.41028637]
[1693769620633,8.69332352,1638.0,1637.9,28.61630305]
[1693769621131,5.82616,1638.0,1637.9,28.61630305]
[1693769621635,5.33737756,1638.0,1637.9,28.61630305]
[1693769621934,4.39737756,1638.0,1637.9,28.61630305]
[1693769622231,4.2378,1638.2,1637.9,50.5687644]
[1693769622428,6.1053,1638.3,1638.1,19.12263625]
[1693769622634,6.1053,1638.3,1638.2,7.098407]
[1693769622836,6.1053,1638.3,1638.2,16.256507]
[1693769623637,6.1053,1638.3,1638.2,14.6551]
[1693769625440,5.047,1638.3,1638.2,14.6551]
[1693769625738,7.20501664,1638.8,1638.2,14.6551]
[1693769625739,13.63757293,1638.9,1638.8,0.0611]
[1693769625932,3.05101,1639.1,1639.0,0.0611]
[1693769626130,3.05101,1639.1,1639.0,5.497]
[1693769626131,2.86716352,1639.1,1639.0,5.497]
[1693769626335,22.99263558,1639.4,1639.1,8.548]
[1693769626336,6.10145,1639.3,1639.1,8.548]
[1693769626543,3.05033,1639.5,1639.2,5.497]
[1693769626839,9.15086,1639.5,1639.4,5.497]
[1693769627035,9.59876173,1639.5,1639.3,5.497]
[1693769627229,9.15086,1639.5,1639.3,5.497]
[1693769628743,17.69816,1639.5,1639.2,5.497]
[1693769629041,17.69816,1639.5,1639.2,8.54783]
[1693769630936,5.497,1639.3,1639.0,10.94949165]
[1693769631135,9.15252,1639.2,1639.0,7.89836165]
[1693769631341,12.20336,1639.2,1639.0,7.89836165]
[1693769632339,12.20336,1639.2,1639.0,5.497]
[1693769633139,5.497,1639.1,1638.9,3.99461423]
[1693769633438,9.15363,1639.0,1638.9,3.99461423]
[1693769633943,9.15363,1639.0,1638.9,9.49161423]
[1693769634838,14.65063,1639.0,1638.9,3.99461423]
[1693769635839,9.15363,1639.0,1638.9,9.49161423]
[1693769636742,9.15363,1639.0,1638.9,12.54301423]
[1693769637344,8.23800591,1639.0,1638.9,10.14165258]
[1693769637543,5.18679591,1639.0,1638.9,13.19305258]
[1693769638247,6.10242,1639.0,1638.9,13.19305258]
[1693769638846,6.10242,1639.0,1638.9,11.5998]
[1693769639249,6.10246,1639.0,1638.9,11.5998]
[1693769639442,3.05125,1639.0,1638.9,11.5998]
[1693769639747,6.1025,1639.0,1638.9,11.5998]
[1693769640150,8.96966352,1639.0,1638.9,11.5998]
[1693769641354,8.96966352,1639.0,1638.9,8.5484]
[1693769641548,8.96966352,1639.0,1638.9,11.59984]
[1693769641845,3.05125,1639.0,1638.9,6.10284]
[1693769642046,6.1025,1639.0,1638.9,11.59984]
[1693769642252,8.96966352,1639.0,1638.9,11.59984]
[1693769642451,8.96966352,1639.0,1638.9,13.19309258]
[1693769643247,2.86716352,1639.0,1638.9,13.19309258]
[1693769644053,5.32103648,1639.1,1638.9,13.19309258]
[1693769644255,14.29057,1639.1,1638.9,13.19309258]
[1693769645947,14.29057,1639.1,1638.9,15.59445423]
[1693769646652,14.29057,1639.1,1639.0,1.59325258]
[1693769646846,14.29057,1639.1,1638.9,15.59445423]
[1693769647753,14.29057,1639.1,1639.0,1.59325258]
[1693769650450,14.29057,1639.1,1639.0,1.65425258]
[1693769651360,14.29057,1639.1,1639.0,4.70623054]
[1693769653361,14.29057,1639.1,1639.0,10.20323054]
[1693769653956,9.07244,1639.2,1639.0,13.25447054]
[1693769654252,6.10153,1639.3,1639.2,6.10174]
[1693769654454,6.10151,1639.3,1639.2,17.03658009]
[1693769655671,8.96867352,1639.3,1639.2,17.03658009]
[1693769656168,6.10151,1639.3,1639.2,17.03658009]
[1693769656761,12.01944352,1639.3,1639.2,10.93484009]
[1693769656969,12.01944352,1639.3,1639.2,10.13940649]
[1693769657171,12.01944352,1639.3,1639.2,12.52526862]
[1693769658065,12.01944352,1639.3,1639.2,10.93484009]
[1693769658970,12.01944352,1639.3,1639.2,13.98571009]
[1693769659272,9.15228,1639.3,1639.2,17.03658009]
[1693769660069,12.01944352,1639.3,1639.2,17.03658009]
[1693769662171,12.01944352,1639.3,1639.2,13.98571009]
[1693769664067,12.01944352,1639.3,1639.2,14.80308008]
[1693769664570,9.15228,1639.3,1639.2,14.80308008]
[1693769664871,9.15228,1639.3,1639.2,17.85395008]
[1693769666872,9.15228,1639.3,1639.2,18.34268083]
[1693769666873,12.01944352,1639.3,1639.2,18.34268083]
[1693769667073,12.01944352,1639.3,1639.2,15.13944871]
[1693769667570,12.01944352,1639.3,1639.2,12.08857871]
[1693769667775,12.01944352,1639.3,1639.2,15.13944871]
[1693769668279,12.01944352,1639.3,1639.2,19.12258018]
[1693769671181,12.01944352,1639.3,1639.2,15.13944871]
[1693769673082,12.01944352,1639.3,1639.2,19.13644311]
[1693769673585,12.01944352,1639.3,1639.2,15.13903689]
[1693769674189,12.01944352,1639.3,1639.2,19.13595735]
[1693769675782,12.01944352,1639.3,1639.2,16.08508735]
[1693769675987,12.01944352,1639.3,1639.2,19.13595735]
[1693769676588,12.01944352,1639.3,1639.2,16.08508735]
[1693769676788,12.01944352,1639.3,1639.2,15.13903689]
[1693769677190,11.58106982,1639.3,1639.2,18.33643661]
[1693769677392,11.58106982,1639.3,1639.2,21.39833661]
[1693769677689,11.58106982,1639.3,1639.2,18.34746661]
[1693769679294,11.58106982,1639.3,1639.2,17.54808814]
[1693769679591,14.64606982,1639.3,1639.2,17.54808814]
[1693769680191,14.64606982,1639.3,1639.2,19.14680077]
[1693769681093,14.64606982,1639.3,1639.2,13.69721338]
[1693769682194,14.64606982,1639.3,1639.2,12.09850075]
[1693769682784,17.69683982,1639.3,1639.2,0.48873075]
[1693769682991,14.64606982,1639.3,1639.2,3.05087]
[1693769687190,14.64606982,1639.3,1639.2,6.10174]
[1693769691694,14.64606982,1639.3,1639.2,9.11094]
[1693769693195,14.64606982,1639.3,1639.2,14.60794]
[1693769695300,14.64606982,1639.3,1639.2,15.10648745]
[1693769697301,11.59529982,1639.3,1639.2,18.15735745]
[1693769698300,8.7281363,1639.3,1639.2,18.15735745]
[1693769698494,11.59529982,1639.3,1639.2,18.15735745]
[1693769699001,9.1519,1639.4,1639.2,21.20822745]
[1693769699905,2.86716352,1639.3,1639.2,21.20822745]
[1693769700103,3.05069,1639.3,1639.2,21.20822745]
[1693769700304,9.15193,1639.4,1639.2,21.20822745]
[1693769701402,9.15193,1639.4,1639.3,5.497]
[1693769701600,9.15193,1639.4,1639.3,11.59838]
[1693769702307,12.01909352,1639.4,1639.3,11.59838]
[1693769703304,12.01909352,1639.4,1639.3,6.10138]
[1693769706406,9.15193,1639.4,1639.3,6.10138]
[1693769707708,12.01909352,1639.4,1639.3,6.10138]
[1693769709710,9.15193,1639.4,1639.3,6.10138]
[1693769710210,12.01909352,1639.4,1639.3,6.10138]
[1693769711913,9.15193,1639.4,1639.3,6.10138]
[1693769712207,12.01909352,1639.4,1639.3,6.10138]
[1693769717311,9.15193,1639.4,1639.3,6.10138]
[1693769717510,9.15193,1639.4,1639.3,9.15207]
[1693769718418,9.15193,1639.4,1639.3,6.10138]
[1693769718919,12.01909352,1639.4,1639.3,6.10138]
[1693769721918,9.15193,1639.4,1639.3,6.10138]
[1693769722312,6.10019,1639.7,1639.3,32.34937526]
[1693769722509,9.15029,1639.7,1639.6,5.497]
[1693769722820,9.15029,1639.7,1639.6,11.59726]
[1693769723319,9.15029,1639.7,1639.6,14.55776]
[1693769723709,3.04967,1639.9,1639.6,20.65802]
[1693769723916,6.09956,1639.8,1639.6,15.16102]
[1693769724109,6.09956,1639.8,1639.7,5.497]
[1693769724316,5.61106385,1639.9,1639.7,24.66374428]
[1693769724523,6.10897,1640.0,1639.8,5.497]
[1693769724714,6.10897,1640.0,1639.9,5.497]
[1693769724715,9.15852,1640.0,1639.9,5.497]
[1693769724909,9.15852,1640.0,1639.9,11.59614]
[1693769725319,6.10897,1640.0,1639.9,14.64571]
[1693769726226,6.10897,1640.0,1639.9,11.59614]
[1693769726414,0.01,1640.0,1639.9,14.64571]
[1693769726616,0.01,1640.0,1639.9,27.69528]
[1693769731922,0.01,1640.0,1639.9,30.89238]
[1693769733525,0.01655632,1640.0,1639.9,31.38028069]
[1693769736431,0.01,1640.0,1639.9,31.38028069]
[1693769737327,0.01655478,1640.0,1639.9,31.38028069]
[1693769737532,9.59066643,1642.3,1640.1,15.497]
[1693769737533,6.097,1640.5,1640.1,15.497]
[1693769737826,3.04831,1640.6,1640.5,9.14529]
[1693769737827,8.60203,1640.6,1640.5,9.14529]
[1693769738219,6.0962,1640.7,1640.5,20.64662]
[1693769738428,0.00586494,1640.6,1640.5,20.64662]
[1693769738622,6.10234494,1640.6,1640.5,17.59819]
[1693769740422,0.00586494,1640.6,1640.5,17.59819]
[1693769740621,6.00048,1640.7,1640.5,17.59819]
[1693769740822,6.00048,1640.7,1640.5,20.64662]
[1693769740823,9.04858,1640.7,1640.5,20.64662]
[1693769741527,12.09668,1640.7,1640.5,17.59819]
[1693769741732,17.23378,1640.7,1640.5,17.59819]
[1693769742529,6.10234037,1640.6,1640.5,17.59819]
[1693769742835,6.10234037,1640.6,1640.5,12.10119]
[1693769743030,17.69582037,1640.6,1640.2,4.63883906]
[1693769743237,5.497,1640.3,1640.2,1.5871831]
[1693769743534,17.6922,1640.3,1640.2,1.5871831]
[1693769743733,19.96213648,1640.3,1640.2,1.5871831]
[1693769743931,22.8293,1640.3,1640.2,1.5871831]
[1693769744329,22.8293,1640.3,1640.2,4.63681076]
[1693769745528,22.83513284,1640.3,1640.2,4.63681076]
[1693769746641,25.88393284,1640.3,1640.1,1.58707718]
[1693769746833,17.69296,1640.2,1640.1,1.58707718]
[1693769747430,17.69296,1640.2,1640.1,2.08623236]
[1693769747629,17.69296,1640.2,1640.0,1.62618752]
[1693769747937,22.83078,1640.1,1640.0,0.03911034]
[1693769748529,22.83659493,1640.1,1640.0,0.03911034]
[1693769748938,22.83659493,1640.1,1640.0,0.01895522]
[1693769749241,22.83659493,1640.1,1639.9,4.45559364]
[1693769749542,5.497,1640.0,1639.9,4.45559364]
[1693769749735,17.69444,1640.0,1639.9,7.50588926]
[1693769750338,0.00581493,1640.1,1639.9,12.68681631]
[1693769750541,2.9776,1640.5,1640.1,15.51444479]
[1693769750542,6.0262,1640.5,1640.1,15.51444479]
[1693769750750,3.04843,1640.5,1640.4,7.14349938]
[1693769750948,6.09688,1640.5,1640.4,13.24073938]
[1693769751443,6.10228241,1640.5,1640.4,13.24073938]
[1693769751749,12.01789593,1640.5,1640.4,13.24073938]
[1693769751949,12.01789593,1640.5,1640.4,10.79317378]
[1693769752353,12.01789593,1640.5,1640.4,10.79317982]
[1693769752746,12.01789593,1640.5,1640.4,7.74373938]
[1693769753749,20.56334593,1640.5,1640.4,1.58549938]
[1693769754149,20.56334593,1640.5,1640.3,10.06129845]
[1693769754549,20.56334593,1640.5,1640.3,7.01256845]
[1693769754752,2.26993648,1640.4,1640.3,7.01253845]
[1693769754950,11.41585648,1640.4,1640.3,10.06212406]
[1693769755151,11.41585648,1640.4,1640.3,10.73269499]
[1693769755350,6.09728,1640.4,1640.3,11.52544468]
[1693769755656,3.04864,1640.4,1640.3,14.57426468]
[1693769755857,6.09728,1640.4,1640.3,14.57426468]
[1693769756351,5.92099593,1640.5,1640.3,14.57426468]
[1693769756551,0.00540241,1640.5,1640.4,5.48883468]
[1693769756752,6.10236241,1640.5,1640.4,14.63484468]
[1693769756955,12.01800593,1640.5,1640.4,17.08317468]
[1693769757254,12.01800593,1640.5,1640.4,10.19270742]
[1693769757657,0.00540241,1640.5,1640.4,23.18031146]
[1693769757952,0.00540241,1640.5,1640.4,23.91206115]
[1693769758168,0.00540241,1640.5,1640.4,23.97306115]
[1693769758364,0.00540241,1640.5,1640.4,23.17950049]
[1693769758667,3.05387241,1640.5,1640.4,23.17950049]
[1693769758867,3.05387241,1640.5,1640.4,23.97306115]
[1693769759068,0.00540241,1640.5,1640.4,23.97306115]
[1693769759861,3.05387241,1640.5,1640.4,23.97306115]
[1693769760257,0.00540241,1640.5,1640.4,33.97306115]
[1693769760465,9.14467,1640.7,1640.6,10.0]
[1693769760764,6.09643,1640.7,1640.6,30.06872042]
[1693769760961,12.01183352,1640.7,1640.6,30.06872042]
[1693769761165,8.96359352,1640.7,1640.6,30.06872042]
[1693769761471,6.10184896,1640.7,1640.6,30.06872042]
[1693769761671,6.10184896,1640.7,1640.6,20.06872042]
[1693769761867,6.10184896,1640.7,1640.6,30.06872042]
[1693769762170,8.96901248,1640.7,1640.6,30.06872042]
[1693769762577,6.10184896,1640.7,1640.6,30.06872042]
[1693769763266,8.96901248,1640.7,1640.6,30.06872042]
[1693769763570,3.05362896,1640.7,1640.6,30.06872042]
[1693769763769,6.10180896,1640.7,1640.6,30.06872042]
[1693769764477,8.96897248,1640.7,1640.6,30.06872042]
[1693769764973,6.10180896,1640.7,1640.6,30.06872042]
[1693769765167,8.96897248,1640.7,1640.6,30.06872042]
[1693769765369,8.96897248,1640.7,1640.6,27.69130239]
[1693769765868,8.96897248,1640.7,1640.6,30.07040582]
[1693769766168,6.10180896,1640.7,1640.6,30.07040582]
[1693769766671,15.06533248,1640.7,1640.6,5.42950818]
[1693769766873,12.01712248,1640.7,1640.6,11.52606818]
[1693769767276,8.96894248,1640.7,1640.6,12.3159131]
[1693769768771,12.01704248,1640.7,1640.6,12.3159131]
[1693769768967,8.96886248,1640.7,1640.6,12.3159131]
[1693769769373,6.10169896,1640.7,1640.6,17.8129131]
[1693769770068,8.96886248,1640.7,1640.6,17.8129131]
[1693769770574,6.10169896,1640.7,1640.6,17.8129131]
[1693769770775,12.01696248,1640.7,1640.6,6.2193531]
[1693769770973,15.06506248,1640.7,1640.6,5.4312875]
[1693769771174,12.01688248,1640.7,1640.6,5.4312875]
[1693769771573,15.06498248,1640.7,1640.6,5.4312875]
[1693769771770,12.01688248,1640.7,1640.6,5.4312875]
[1693769772473,12.01688248,1640.7,1640.6,3.53315041]
[1693769773067,12.01688248,1640.7,1640.6,5.91537532]
[1693769773772,15.06498248,1640.7,1640.6,5.91537532]
[1693769773973,15.06498248,1640.7,1640.6,7.01321085]
[1693769774176,15.06498248,1640.7,1640.2,11.63841784]
[1693769774177,29.10708248,1640.7,1640.5,3.97185145]
[1693769774377,29.10708248,1640.7,1640.4,3.97185145]
[1693769774378,7.76693648,1640.6,1640.4,3.97185145]
[1693769774678,23.60651352,1640.5,1640.4,3.97185145]
[1693769774975,23.60651352,1640.5,1640.4,4.63857521]
[1693769775165,23.60651352,1640.5,1640.3,1.58965659]
[1693769775370,23.60651352,1640.5,1640.2,2.38311087]
[1693769775371,15.2442,1640.3,1640.2,2.38311087]
[1693769775571,15.2442,1640.3,1640.2,5.4332809]
[1693769775572,23.60836352,1640.3,1640.2,5.4332809]
[1693769775875,23.60836352,1640.3,1640.2,3.05017003]
[1693769776072,23.60836352,1640.3,1640.1,2.38311087]
[1693769776270,23.60836352,1640.3,1640.0,2.38311087]
[1693769776271,13.26393648,1640.2,1640.0,2.38311087]
[1693769776573,23.61021352,1640.1,1639.9,2.38311087]
[1693769776881,7.76693648,1640.0,1639.9,2.38311087]
[1693769777079,19.96453648,1640.0,1639.9,2.38311087]
[1693769777272,19.96453648,1640.0,1639.8,5.43360438]
[1693769777473,8.36416352,1639.9,1639.8,2.38569414]
[1693769777674,17.69536,1639.9,1639.8,6.9614341]
[1693769777876,20.56252352,1639.9,1639.8,5.43618745]
[1693769778374,20.56727288,1639.9,1639.8,5.43618745]
[1693769779379,20.56727288,1639.9,1639.8,3.05049331]
[1693769780380,20.56727288,1639.9,1639.7,6.12691154]
[1693769780579,2.26993648,1639.8,1639.7,6.12691154]
[1693769780776,14.46901648,1639.8,1639.7,5.92280942]
[1693769781081,14.46901648,1639.8,1639.7,3.53711528]
[1693769781274,14.46901648,1639.8,1639.7,0.4866174]
[1693769781475,14.46901648,1639.8,1639.6,2.38569414]
[1693769781675,2.86716352,1639.7,1639.6,2.38569414]
[1693769781877,15.06700352,1639.7,1639.6,2.38569414]
[1693769782274,15.06700352,1639.7,1639.6,5.43620504]
[1693769782480,15.06700352,1639.7,1639.6,3.53726749]
[1693769782878,6.09992,1639.7,1639.6,10.55951414]
[1693769783077,9.14988,1639.7,1639.6,15.99534828]
[1693769783575,12.01704352,1639.7,1639.6,9.03426749]
[1693769784171,12.01704352,1639.7,1639.6,5.98375659]
[1693769784376,20.56400352,1639.7,1639.6,0.48675659]
[1693769784572,20.56400352,1639.7,1639.4,12.00392905]
[1693769784771,9.15099,1639.5,1639.4,12.00392905]
[1693769784977,12.01815352,1639.5,1639.4,15.05464126]
[1693769785176,12.01815352,1639.5,1639.4,17.19412635]
[1693769785577,12.01815352,1639.5,1639.4,17.02215115]
[1693769786982,12.01815352,1639.5,1639.4,17.51116696]
[1693769787982,12.01815352,1639.5,1639.4,19.03641361]
[1693769788482,12.01815352,1639.5,1639.4,17.51116696]
[1693769789580,12.01815352,1639.5,1639.4,20.56168696]
[1693769789783,9.15099,1639.5,1639.4,22.08693361]
[1693769790584,12.01815352,1639.5,1639.4,22.08693361]
[1693769791284,9.15099,1639.5,1639.4,22.08693361]
[1693769795790,6.10066,1639.5,1639.4,22.08693361]
[1693769797489,8.24029708,1639.5,1639.4,22.08693361]
[1693769798485,8.23577542,1639.5,1639.4,22.08693361]
[1693769798687,11.10293894,1639.5,1639.4,22.08693361]
[1693769798886,8.23577542,1639.5,1639.4,22.08693361]
[1693769799292,11.10293894,1639.5,1639.4,22.08693361]
[1693769799494,11.10745788,1639.5,1639.4,22.08693361]
[1693769800702,11.10745788,1639.5,1639.4,20.56168696]
[1693769800892,8.24029436,1639.5,1639.4,22.08693361]
[1693769801292,8.24029436,1639.5,1639.4,19.03641361]
[1693769801687,11.10745788,1639.5,1639.4,19.03641361]
[1693769803298,11.10745788,1639.5,1639.4,22.08693361]
[1693769804300,11.10745788,1639.5,1639.4,19.03641361]
[1693769805102,11.10745788,1639.5,1639.4,17.51116696]
[1693769806909,11.10745788,1639.5,1639.4,19.03641361]
[1693769807205,11.10745788,1639.5,1639.4,17.51116696]
[1693769807703,11.10745788,1639.5,1639.4,14.45475006]
[1693769807905,11.10745788,1639.5,1639.4,8.95775006]
[1693769814306,11.10745788,1639.5,1639.4,9.75095534]
[1693769816710,14.15778788,1639.5,1639.4,9.75095534]
[1693769817412,14.15778788,1639.5,1639.4,10.54416062]
[1693769817608,20.57000246,1639.5,1639.4,7.50593582]
[1693769817802,20.57000246,1639.5,1639.3,2.38811045]
[1693769818001,7.76693648,1639.4,1639.3,5.43948016]
[1693769818205,19.96901648,1639.4,1639.3,5.43948016]
[1693769818405,19.97319122,1639.4,1639.3,5.43948016]
[1693769819410,19.97319122,1639.4,1639.3,7.01739611]
[1693769821412,19.97319122,1639.4,1639.3,3.05136971]
[1693769821715,19.97319122,1639.4,1639.3,7.04079945]
[1693769824515,19.97319122,1639.4,1639.3,3.05136971]
[1693769824716,19.97319122,1639.4,1639.3,7.04079945]
[1693769825322,19.97319122,1639.4,1639.3,6.24125924]
[1693769826625,19.97319122,1639.4,1639.3,5.443413]
[1693769828324,19.97319122,1639.4,1639.3,2.39204329]
[1693769828621,19.97319122,1639.4,1639.2,2.87118401]
[1693769828825,8.36416352,1639.3,1639.2,2.39204329]
[1693769829123,20.56696352,1639.3,1639.2,2.39204329]
[1693769829532,20.57112998,1639.3,1639.1,2.39204329]
[1693769829730,20.57112998,1639.3,1639.1,0.47799601]
[1693769829731,7.76693648,1639.2,1639.1,0.47799601]
[1693769829930,19.97049648,1639.2,1639.0,5.44375923]
[1693769830132,5.497,1639.1,1639.0,5.44375923]
[1693769830331,20.56848352,1639.1,1639.0,3.05171594]
[1693769833528,2.26993648,1639.0,1638.6,16.35004329]
[1693769833728,2.26993648,1639.0,1638.3,2.3813]